bitfinex/quotes_ETHUSD_20230703
["timestamp","ask_amount","ask_price","bid_price","bid_amount"]
[1688358533929,15.37668816,1950.4,1950.0,2.19749046]
[1688358534140,0.923,1950.2,1949.8,8.12861]
[1688358534297,8.60951816,1950.2,1949.8,8.12861]
[1688358534624,0.03600291,1950.1,1949.8,9.97331]
[1688358534805,5.16403291,1950.1,1949.8,4.8447]
[1688358535418,0.03976651,1950.0,1949.8,4.8447]
[1688358535618,0.03976651,1950.0,1949.8,9.97333]
[1688358535923,5.16797651,1950.0,1949.8,4.8447]
[1688358536145,0.03976651,1950.0,1949.8,6.97336]
[1688358536485,0.03976651,1950.0,1949.8,1.8447]
[1688358537401,0.03976651,1950.0,1949.8,6.97342]
[1688358539442,7.72680467,1950.0,1949.7,7.95853187]
[1688358539589,12.85505467,1950.0,1949.7,2.412]
[1688358539791,12.85505467,1950.0,1949.7,3.0]
[1688358539989,7.69080176,1950.0,1949.7,8.12883]
[1688358540241,0.027174,1949.9,1949.7,13.25769]
[1688358540532,0.027174,1949.9,1949.7,15.01390853]
[1688358541221,0.00360103,1949.8,1949.7,15.01390853]
[1688358541423,0.00360103,1949.8,1949.7,17.57839853]
[1688358542343,0.027174,1949.9,1949.7,17.57839853]
[1688358543200,0.00360103,1949.8,1949.7,17.57839853]
[1688358544097,0.027174,1949.9,1949.7,17.57839853]
[1688358545210,0.00360103,1949.8,1949.7,17.57839853]
[1688358546447,0.027174,1949.9,1949.7,17.57839853]
[1688358547212,0.00358311,1949.8,1949.7,17.57839853]
[1688358548354,0.027174,1949.9,1949.7,17.57839853]
[1688358548532,0.027174,1949.9,1949.8,1.75783985]
[1688358548843,0.923,1950.3,1949.8,14.57965985]
[1688358548844,1.6328,1950.3,1949.8,14.57965985]
[1688358549142,2.55878816,1950.2,1950.0,10.2564]
[1688358549445,2.5624213,1950.2,1950.0,10.2564]
[1688358554745,0.00363314,1950.2,1950.0,14.343943]
[1688358555116,0.00363314,1950.2,1950.0,16.138043]
[1688358555359,5.12715,1950.4,1950.0,16.138043]
[1688358555874,5.12715,1950.4,1950.0,13.573943]
[1688358556262,7.68985933,1950.3,1950.0,5.12811]
[1688358556468,12.81750933,1950.3,1950.0,5.12811]
[1688358556680,12.81750933,1950.3,1949.9,12.67054]
[1688358556973,12.81750933,1950.3,1949.9,7.54222]
[1688358557561,0.02932865,1950.2,1949.9,7.54222]
[1688358557771,2.58811681,1950.2,1949.9,7.54222]
[1688358557935,2.55878816,1950.2,1949.9,7.54222]
[1688358558136,0.0036072,1950.1,1949.9,7.54222]
[1688358558682,0.0036072,1950.1,1949.9,12.67068]
[1688358560333,0.0301147,1950.1,1949.9,12.67068]
[1688358560769,0.0036072,1950.1,1949.9,12.67068]
[1688358561692,0.02983189,1950.1,1949.9,12.67068]
[1688358563156,0.02983189,1950.1,1949.9,15.23491]
[1688358563373,0.02983189,1950.1,1950.0,0.01647193]
[1688358563554,0.0036072,1950.1,1950.0,17.01971164]
[1688358563975,0.0036072,1950.1,1950.0,18.71611164]
[1688358564279,0.66284076,1950.6,1950.0,18.71611164]
[1688358564483,0.66284076,1950.6,1950.2,0.917]
[1688358564688,0.66284076,1950.6,1950.3,12.8184]
[1688358565243,0.00351588,1950.5,1950.3,15.1656]
[1688358577364,0.00351588,1950.5,1950.3,16.0886]
[1688358577580,0.00351588,1950.5,1950.3,16.35633971]
[1688358577886,0.00351588,1950.5,1950.4,18.64324368]
[1688358578294,0.66284076,1950.6,1950.4,18.64324368]
[1688358578496,0.66284076,1950.6,1950.5,12.81722]
[1688358578868,0.66284076,1950.6,1950.5,15.81722]
[1688358579191,0.66636466,1950.6,1950.5,15.81722]
[1688358579382,0.66636466,1950.6,1950.5,17.93713637]
[1688358582299,0.66636466,1950.6,1950.5,18.20487608]
[1688358583293,0.66284076,1950.6,1950.5,18.20487608]
[1688358587400,0.66636466,1950.6,1950.5,18.20487608]
[1688358588172,0.66284076,1950.6,1950.5,18.20487608]
[1688358589283,0.66284076,1950.6,1950.5,18.35188782]
[1688358591860,0.66284076,1950.6,1950.5,17.93713637]
[1688358592202,0.66636466,1950.6,1950.5,15.37369637]
[1688358593493,0.66636466,1950.6,1950.4,5.12713]
[1688358593721,0.66636466,1950.6,1950.5,5.12689]
[1688358593926,0.66636466,1950.6,1950.5,10.25378]
[1688358594635,0.66636466,1950.6,1950.3,3.0]
[1688358594927,1.58936466,1950.6,1950.2,5.25355599]
[1688358595079,9.27479282,1950.6,1950.2,12.94493599]
[1688358595432,9.27479282,1950.6,1950.2,5.12741]
[1688358595433,2.55878816,1950.5,1950.2,5.12741]
[1688358595621,7.68569816,1950.5,1950.2,5.12741]
[1688358595786,2.55878816,1950.5,1950.2,5.12741]
[1688358595983,2.55878816,1950.5,1950.2,10.25508]
[1688358596296,0.00350785,1950.4,1950.2,5.12741]
[1688358597665,0.00350785,1950.4,1950.1,0.41313541]
[1688358597666,2.55878816,1950.3,1950.1,0.41313541]
[1688358597819,2.55878816,1950.3,1949.8,2.4701]
[1688358597820,10.25534,1950.2,1949.8,2.4701]
[1688358598128,12.81412816,1950.2,1949.8,2.4701]
[1688358598422,12.81412816,1950.2,1949.7,10.2577]
[1688358598423,0.00351429,1950.1,1949.7,10.2577]
[1688358598633,0.00351429,1950.1,1949.6,33.1246]
[1688358598634,2.56230245,1950.1,1949.8,5.12849]
[1688358598933,0.923,1950.0,1949.7,10.25767]
[1688358599086,7.68739816,1949.9,1949.7,5.12877]
[1688358599282,7.68739816,1949.9,1949.7,10.25776]
[1688358599540,2.55878816,1949.9,1949.7,10.25776]
[1688358599821,2.55878816,1949.9,1949.7,12.82225]
[1688358600604,0.0277235,1949.8,1949.7,12.82225]
[1688358601103,2.55878816,1949.9,1949.7,12.82225]
[1688358604019,0.00349879,1950.0,1949.7,12.82225]
[1688358604226,2.56228695,1950.0,1949.7,12.82225]
[1688358607609,0.03118212,1949.9,1949.7,12.82225]
[1688358607814,0.03118212,1949.9,1949.7,12.82247]
[1688358609014,2.56228695,1950.0,1949.7,12.82247]
[1688358610952,2.56228695,1950.0,1949.7,15.11907]
[1688358611534,0.00349879,1950.0,1949.7,16.82038023]
[1688358611851,0.00349879,1950.0,1949.9,20.78338]
[1688358612000,0.00349879,1950.0,1949.9,16.30115]
[1688358612197,0.00349879,1950.0,1949.9,15.82115]
[1688358612402,0.00349879,1950.0,1949.9,17.451265]
[1688358616606,0.00349879,1950.0,1949.9,19.231165]
[1688358619448,0.00349879,1950.0,1949.9,19.63337408]
[1688358622424,7.6373,1950.5,1949.9,19.63337408]
[1688358622754,2.55878816,1950.4,1950.0,3.0]
[1688358622975,2.55878816,1950.4,1950.1,5.12791]
[1688358623130,8.60894816,1950.4,1950.0,8.12813]
[1688358623470,0.00347995,1950.3,1950.0,8.12817]
[1688358623770,0.00347995,1950.3,1950.0,13.25637]
[1688358624325,3.48178816,1950.4,1950.0,13.25637]
[1688358624550,2.55878816,1950.4,1950.0,15.82047]
[1688358625273,2.55878816,1950.4,1950.0,13.25637]
[1688358625479,0.00347995,1950.3,1950.0,13.25637]
[1688358625971,0.00347995,1950.3,1950.0,15.82047]
[1688358626329,2.55878816,1950.4,1950.0,15.82047]
[1688358627363,0.00347995,1950.3,1950.0,15.82047]
[1688358628353,7.68595816,1950.4,1950.0,15.82047]
[1688358629484,0.00347995,1950.3,1950.0,15.82047]
[1688358630509,12.81326816,1950.4,1950.0,15.82047]
[1688358630777,2.55878816,1950.4,1950.0,15.82047]
[1688358631372,0.00347995,1950.3,1950.0,18.32387]
[1688358632485,2.55878816,1950.4,1950.0,18.32387]
[1688358633337,0.00347995,1950.3,1950.0,18.32387]
[1688358634332,7.68593816,1950.4,1950.0,18.32387]
[1688358635234,0.66284076,1950.6,1950.0,18.32387]
[1688358635387,0.00347995,1950.3,1950.1,1.7738]
[1688358635583,0.00347995,1950.3,1950.2,12.81885]
[1688358636528,0.66284076,1950.6,1950.2,12.81885]
[1688358637295,0.00349601,1950.5,1950.2,12.81885]
[1688358637495,0.00349601,1950.5,1950.2,10.25508]
[1688358637692,0.00349601,1950.5,1950.2,5.12754]
[1688358641743,2.55878816,1950.4,1950.2,5.12754]
[1688358641957,2.55878816,1950.4,1950.1,10.25559]
[1688358642550,0.00347995,1950.3,1950.1,10.25559]
[1688358642950,0.00347995,1950.3,1950.1,10.66929155]
[1688358643355,2.55878816,1950.4,1950.1,10.66929155]
[1688358643860,2.55878816,1950.4,1950.1,10.25559]
[1688358644159,7.68601816,1950.4,1950.1,5.12776]
[1688358644359,0.92647995,1950.3,1949.9,5.12837]
[1688358644533,15.37807816,1950.2,1949.7,5.1288]
[1688358644730,12.81424816,1950.2,1949.7,10.25768]
[1688358644931,12.81424816,1950.2,1949.7,10.67784559]
[1688358645259,13.73724816,1950.2,1949.7,10.67784559]
[1688358645427,0.0034639,1950.1,1949.7,13.24233559]
[1688358645633,2.55878816,1950.0,1949.7,13.24233559]
[1688358646456,0.00344784,1949.9,1949.7,13.24233559]
[1688358648461,0.00344784,1949.9,1949.7,13.5100753]
[1688358648958,0.03106344,1949.9,1949.7,13.5100753]
[1688358649258,0.00344784,1949.9,1949.7,13.5100753]
[1688358653305,0.02855562,1950.1,1949.7,13.5100753]
[1688358653506,2.55878816,1950.1,1949.7,13.5100753]
[1688358653709,0.02768077,1950.0,1949.7,13.5100753]
[1688358653910,2.55878816,1950.1,1949.7,13.5100753]
[1688358654414,0.00345587,1950.0,1949.7,13.5100753]
[1688358654922,0.03017252,1950.0,1949.7,13.5100753]
[1688358664841,0.03017252,1950.0,1949.7,13.24233559]
[1688358666529,0.00345587,1950.0,1949.7,13.24233559]
[1688358666932,0.0312594,1950.0,1949.7,13.24233559]
[1688358668945,0.00345587,1950.0,1949.7,13.24233559]
[1688358669121,0.02997902,1950.0,1949.7,13.24233559]
[1688358671043,0.02997902,1950.0,1949.9,0.918]
[1688358671256,0.00345587,1950.0,1949.9,16.30338]
[1688358671550,0.66284076,1950.6,1949.9,19.30338]
[1688358671551,5.78947076,1950.6,1949.9,19.30338]
[1688358671714,5.78947076,1950.6,1950.1,12.81932]
[1688358671915,5.78947076,1950.6,1950.2,2.4819]
[1688358672153,5.78947076,1950.6,1950.3,12.81842]
[1688358672456,0.00341746,1950.5,1950.3,12.81842]
[1688358673756,2.56220562,1950.5,1950.3,12.81842]
[1688358683432,2.56220562,1950.5,1950.2,5.53080172]
[1688358683433,2.55878816,1950.4,1950.2,5.53080172]
[1688358683630,2.55878816,1950.4,1950.2,10.65831172]
[1688358684458,0.00338106,1950.3,1950.2,10.65831172]
[1688358685581,2.55878816,1950.4,1950.2,13.22214172]
[1688358686447,0.00335291,1950.3,1950.2,13.22214172]
[1688358687377,5.78960076,1950.6,1950.2,13.22214172]
[1688358687683,2.55878816,1950.5,1950.2,13.22214172]
[1688358688678,0.00336094,1950.4,1950.2,13.22214172]
[1688358693057,2.55878816,1950.3,1950.0,2.54]
[1688358693252,2.55878816,1950.3,1949.8,7.25950071]
[1688358693253,7.68623816,1950.3,1949.8,7.25950071]
[1688358693503,0.00334488,1950.2,1949.8,1.7148]
[1688358693660,2.56213304,1950.2,1949.8,6.84344]
[1688358693995,2.55878816,1950.1,1949.8,10.25737]
[1688358694358,0.00332882,1950.0,1949.8,10.25737]
[1688358696293,2.55878816,1949.9,1949.7,5.4982]
[1688358696500,2.55878816,1949.9,1949.7,2.4982]
[1688358696867,2.55878816,1949.9,1949.7,7.62713]
[1688358697397,0.00331276,1949.8,1949.7,7.62713]
[1688358698093,0.00331276,1949.8,1949.7,12.75612]
[1688358698396,2.55878816,1949.9,1949.7,12.75612]
[1688358699098,2.55878816,1949.9,1949.6,10.6669988]
[1688358699273,2.55878816,1949.9,1949.7,5.12891]
[1688358699461,0.00331276,1949.8,1949.7,10.2579]
[1688358700461,2.55878816,1949.9,1949.7,5.12891]
[1688358701567,0.00331276,1949.8,1949.7,5.12891]
[1688358702493,2.55646969,1949.9,1949.7,5.12891]
[1688358702702,2.55646969,1949.9,1949.7,10.2579]
[1688358703405,0.00331276,1949.8,1949.7,12.82239]
[1688358704466,2.55646969,1949.9,1949.7,12.82239]
[1688358705495,0.00331276,1949.8,1949.7,12.82239]
[1688358706434,2.55646969,1949.9,1949.7,12.82239]
[1688358707504,0.00331276,1949.8,1949.7,12.82239]
[1688358708504,2.55646969,1949.9,1949.7,12.82239]
[1688358709468,0.00331276,1949.8,1949.7,12.82239]
[1688358710430,2.55646969,1949.9,1949.7,12.82239]
[1688358711302,0.00331276,1949.8,1949.7,12.82239]
[1688358712333,2.55646969,1949.9,1949.7,12.82239]
[1688358712531,2.55646969,1949.9,1949.7,5.12891]
[1688358713340,0.00331276,1949.8,1949.7,5.12891]
[1688358714352,2.55646969,1949.9,1949.7,5.12891]
[1688358715147,2.55646969,1949.9,1949.6,5.5378788]
[1688358715148,2.55646969,1949.9,1949.6,0.4087088]
[1688358715355,0.00331276,1949.8,1949.6,0.4087088]
[1688358715548,2.55878816,1949.7,1949.4,0.13134198]
[1688358715723,2.55878816,1949.7,1949.5,0.40703551]
[1688358715905,2.55878816,1949.7,1949.4,8.26111198]
[1688358716342,0.0032967,1949.6,1949.4,8.26111198]
[1688358716842,0.0032967,1949.6,1949.4,3.13134198]
[1688358717540,0.0032967,1949.6,1949.4,8.26097198]
[1688358717945,0.0032967,1949.6,1949.4,13.39075198]
[1688358718346,0.0032967,1949.6,1949.4,8.26097198]
[1688358720153,0.0032967,1949.6,1949.4,3.13134198]
[1688358720458,0.0032967,1949.6,1949.4,8.26108198]
[1688358720628,0.0032967,1949.6,1949.4,13.39086198]
[1688358720825,0.0032967,1949.6,1949.4,8.26108198]
[1688358720826,2.56208486,1949.6,1949.4,8.26108198]
[1688358721350,2.56208486,1949.6,1949.4,13.39086198]
[1688358722015,2.55878816,1949.5,1949.3,0.41782662]
[1688358722251,7.68846816,1949.5,1949.3,0.41782662]
[1688358722572,7.68846816,1949.5,1949.2,4.0045]
[1688358722573,0.00328063,1949.4,1949.2,4.0045]
[1688358722857,0.00328063,1949.4,1949.3,13.49328971]
[1688358723006,0.00328063,1949.4,1949.3,16.49328971]
[1688358723509,5.12857,1949.9,1949.3,17.43276755]
[1688358723723,2.55878816,1949.8,1949.5,12.82365]
[1688358724124,2.55878816,1949.8,1949.5,10.25892]
[1688358724125,7.68751816,1949.8,1949.5,10.25892]
[1688358724306,0.00334144,1949.7,1949.4,1.6949]
[1688358724521,2.5621296,1949.7,1949.3,5.12988]
[1688358724721,2.5621296,1949.7,1949.3,6.82478]
[1688358724964,2.5621296,1949.7,1949.3,5.12988]
[1688358724965,2.55878816,1949.6,1949.3,5.12988]
[1688358725470,0.00328867,1949.5,1949.3,5.12988]
[1688358725670,2.56207683,1949.5,1949.3,5.12988]
[1688358727867,2.55878816,1949.4,1949.2,7.41926]
[1688358728167,2.55878816,1949.4,1949.2,12.54966]
[1688358728383,0.0032726,1949.3,1949.2,12.54966]
[1688358728555,2.56206076,1949.3,1949.2,12.54966]
[1688358732957,2.56206076,1949.3,1949.2,15.11481]
[1688358733145,2.56206076,1949.3,1949.2,16.882819]
[1688358734040,2.56206076,1949.3,1949.2,10.26056]
[1688358735759,2.56206076,1949.3,1949.2,12.82571]
[1688358741968,12.82214076,1949.3,1949.0,9.74341879]
[1688358742310,12.82214076,1949.3,1949.0,13.18744879]
[1688358742311,2.55878816,1949.2,1949.0,13.18744879]
[1688358743379,0.00325652,1949.1,1949.0,13.18744879]
[1688358743806,0.00325652,1949.1,1949.0,15.75285879]
[1688358744321,2.56204468,1949.1,1949.0,10.66824879]
[1688358744492,2.55878816,1949.1,1949.0,10.66824879]
[1688358744821,7.68935816,1949.1,1949.0,5.53764879]
[1688358744980,2.55878816,1949.1,1949.0,5.13083]
[1688358745180,2.55878816,1949.1,1949.0,10.26166]
[1688358745380,2.56204468,1949.1,1949.0,10.26166]
[1688358745839,0.00325652,1949.1,1949.0,10.26166]
[1688358746017,0.00325652,1949.1,1949.0,18.52875571]
[1688358746316,0.00325652,1949.1,1949.0,20.29415571]
[1688358746516,6.72646,1949.7,1949.0,20.29415571]
[1688358746725,2.55878816,1949.6,1949.2,12.82542]
[1688358747384,0.00333558,1949.5,1949.2,17.11902]
[1688358747584,2.55878816,1949.4,1949.2,17.11902]
[1688358748221,0.00333558,1949.5,1949.2,17.11902]
[1688358748407,2.55878816,1949.5,1949.2,17.11902]
[1688358748791,1.1,1949.9,1949.3,0.01647784]
[1688358749113,2.55878816,1949.8,1949.4,12.82392]
[1688358749306,2.55878816,1949.8,1949.5,2.4423]
[1688358749532,0.00322084,1949.7,1949.6,5.12925]
[1688358749706,2.562009,1949.7,1949.6,5.12925]
[1688358750322,2.562009,1949.7,1949.2,5.13007]
[1688358750323,15.653489,1949.7,1949.2,5.13007]
[1688358750520,15.653489,1949.7,1949.3,5.12993]
[1688358750521,2.55878816,1949.6,1949.3,5.12993]
[1688358750822,2.55878816,1949.6,1949.2,5.13014]
[1688358750823,5.12952,1949.5,1949.2,5.13014]
[1688358751026,2.55878816,1949.4,1949.2,5.13014]
[1688358751197,2.55878816,1949.4,1949.1,7.57271]
[1688358751397,0.00319381,1949.3,1949.1,7.57271]
[1688358751605,2.56198197,1949.3,1949.1,7.57271]
[1688358753934,2.56198197,1949.3,1949.1,12.70328]
[1688358754240,0.00319381,1949.3,1949.1,15.26856]
[1688358754417,0.00319381,1949.3,1949.1,16.968386]
[1688358755388,5.12962,1949.5,1949.1,16.968386]
[1688358755628,2.55878816,1949.4,1949.1,16.968386]
[1688358756530,0.00318872,1949.3,1949.1,15.26856]
[1688358771844,0.00318872,1949.3,1949.2,0.918]
[1688358772047,0.00318872,1949.3,1949.2,13.74375]
[1688358772507,0.03888854,1949.7,1949.2,15.52975]
[1688358772701,7.68778816,1949.7,1949.2,15.52975]
[1688358773423,0.00321281,1949.6,1949.2,15.52975]
[1688358773627,0.00321281,1949.6,1949.2,17.583483]
[1688358773834,7.69140097,1949.6,1949.2,12.0466]
[1688358774025,2.55878816,1949.5,1949.2,12.0466]
[1688358774220,7.68832816,1949.5,1949.2,10.2606]
[1688358774426,0.00319675,1949.4,1949.2,10.2606]
[1688358781413,0.00319675,1949.4,1949.2,12.82575]
[1688358788270,0.00319675,1949.4,1949.3,0.922]
[1688358788493,0.00319675,1949.4,1949.3,18.5804]
[1688358789232,0.00319675,1949.4,1949.3,13.26008]
[1688358789432,5.12921,1949.7,1949.3,15.8251]
[1688358789433,5.12918,1949.7,1949.3,15.8251]
[1688358789654,2.55878816,1949.6,1949.3,15.8251]
[1688358790145,0.923,1949.7,1949.3,15.8251]
[1688358790294,2.55878816,1949.7,1949.3,15.8251]
[1688358790642,0.00316806,1949.5,1949.3,5.13004]
[1688358790857,2.55878816,1949.4,1949.2,5.13015]
[1688358791134,2.55878816,1949.4,1949.2,5.13014]
[1688358791644,0.00315199,1949.3,1949.2,5.13014]
[1688358792546,0.00315199,1949.3,1949.2,10.26044]
[1688358793041,0.00315199,1949.3,1949.2,12.82559]
[1688358796499,0.00315199,1949.3,1949.0,0.41577383]
[1688358796500,2.56194015,1949.3,1949.0,0.41577383]
[1688358796698,2.55878816,1949.2,1949.0,5.54657383]
[1688358796903,2.55878816,1949.2,1949.0,10.26163]
[1688358797501,0.00313591,1949.1,1949.0,10.26163]
[1688358798431,2.55878816,1949.2,1949.0,10.26163]
[1688358801678,0.00313591,1949.1,1949.0,10.26163]
[1688358802461,2.55878816,1949.2,1949.0,10.26163]
[1688358803389,0.00313591,1949.1,1949.0,10.26163]
[1688358804079,0.00313591,1949.1,1949.0,12.14148207]
[1688358804300,0.00313591,1949.1,1949.0,25.78986178]
[1688358804461,1.32,1949.9,1949.0,31.18786178]
[1688358804462,0.02794459,1949.8,1949.0,31.18786178]
[1688358804665,1.32,1949.9,1949.1,3.26773971]
[1688358805002,1.32,1949.9,1949.3,15.38982]
[1688358805205,6.44852,1949.9,1949.3,15.38982]
[1688358805357,0.00299829,1949.8,1949.3,15.38982]
[1688358805553,0.00299829,1949.8,1949.3,12.82485]
[1688358805783,5.13183829,1949.8,1949.3,12.82485]
[1688358805979,10.26067829,1949.8,1949.3,12.82485]
[1688358806795,2.55878816,1949.7,1949.3,12.82485]
[1688358807309,2.55878816,1949.7,1949.3,12.8249]
[1688358807485,0.00298223,1949.6,1949.3,12.8249]
[1688358807674,2.56177039,1949.6,1949.3,12.8249]
[1688358812110,2.55878816,1949.5,1949.3,10.25988]
[1688358812606,2.56175726,1949.5,1949.3,10.25988]
[1688358812964,2.56175726,1949.5,1949.3,11.00815099]
[1688358813360,2.56175726,1949.5,1949.3,12.8249]
[1688358815377,2.56175726,1949.5,1949.3,13.7399]
[1688358817482,0.0029691,1949.5,1949.3,13.7399]
[1688358817813,0.0029691,1949.5,1949.4,0.922]
[1688358817995,0.0029691,1949.5,1949.4,13.74645]
[1688358818167,0.0029691,1949.5,1949.4,18.890591]
[1688358818373,1.32,1949.9,1949.4,18.890591]
[1688358818899,1.32,1949.9,1949.6,12.823]
[1688358819528,0.00289498,1949.8,1949.6,12.823]
[1688358820427,1.32,1949.9,1949.6,12.823]
[1688358820628,1.32,1949.9,1949.6,14.61003]
[1688358821440,0.00289498,1949.8,1949.6,14.61003]
[1688358822490,1.32,1949.9,1949.6,14.61003]
[1688358823427,0.00289498,1949.8,1949.6,14.61003]
[1688358824421,1.32,1949.9,1949.6,14.61003]
[1688358824624,2.55878816,1949.8,1949.5,12.74134]
[1688358824828,2.55878816,1949.8,1949.5,2.4826]
[1688358825133,2.55878816,1949.8,1949.5,7.61188]
[1688358825486,0.00287676,1949.7,1949.5,7.61188]
[1688358828023,0.00287676,1949.7,1949.5,7.61207]
[1688358831938,0.00287676,1949.7,1949.5,4.79207]
[1688358832931,2.52083076,1949.8,1949.5,4.79207]
[1688358833117,2.52083076,1949.8,1949.5,9.92159]
[1688358833435,0.00276102,1949.7,1949.5,9.92159]
[1688358835051,0.00276102,1949.7,1949.5,4.79207]
[1688358835215,2.55878816,1949.6,1949.5,4.79207]
[1688358835542,2.56154115,1949.6,1949.5,4.79207]
[1688358835748,2.56154115,1949.6,1949.5,9.92159]
[1688358839616,2.56154115,1949.6,1949.5,12.48635]
[1688358839804,2.51154115,1949.6,1949.5,12.48635]
[1688358842165,2.51154115,1949.6,1949.5,4.79207]
[1688358842365,2.51154115,1949.6,1949.4,10.2593]
[1688358842578,2.51154115,1949.6,1949.4,5.12962]
[1688358842890,2.51154115,1949.6,1949.2,3.41653791]
[1688358843020,7.64095115,1949.6,1949.2,10.67713791]
[1688358843224,15.33482115,1949.6,1949.1,3.74]
[1688358843560,16.25782115,1949.6,1949.1,1.7028]
[1688358843738,16.25782115,1949.6,1949.1,6.83335]
[1688358844139,16.25782115,1949.6,1949.1,5.13055]
[1688358844874,16.25782115,1949.6,1949.0,11.96413]
[1688358845256,0.02774566,1949.5,1949.0,11.96413]
[1688358845460,7.68868816,1949.4,1949.0,11.96413]
[1688358845621,2.55878816,1949.4,1949.0,11.96413]
[1688358845824,2.55878816,1949.4,1949.0,14.52954]
[1688358846364,2.55878816,1949.4,1949.0,14.93580705]
[1688358846573,0.0031877,1949.3,1949.0,14.93580705]
[1688358846866,2.56197586,1949.3,1949.0,14.93580705]
[1688358859352,2.55878816,1949.2,1949.0,12.37039705]
[1688358860432,0.00321205,1949.1,1949.0,12.37039705]
[1688358860947,0.00321205,1949.1,1949.0,14.93580705]
[1688358861465,2.55878816,1949.2,1949.0,14.93580705]
[1688358862385,0.00321205,1949.1,1949.0,14.93580705]
[1688358863448,2.55878816,1949.2,1949.0,14.93580705]
[1688358864399,0.00321205,1949.1,1949.0,14.93580705]
[1688358865456,2.55878816,1949.2,1949.0,14.93580705]
[1688358865791,9.322,1949.9,1949.1,0.923]
[1688358866033,6.02798816,1949.7,1949.3,10.25988]
[1688358866167,6.02798816,1949.7,1949.1,5.39819971]
[1688358866168,12.81738816,1949.6,1949.1,5.39819971]
[1688358866494,15.8652737,1949.6,1949.1,10.26103]
[1688358870096,15.8652737,1949.6,1949.1,5.13046]
[1688358870266,21.2632737,1949.6,1949.1,5.13046]
[1688358871403,18.6986537,1949.6,1949.1,10.26103]
[1688358871611,0.00326554,1949.6,1949.1,13.09404971]
[1688358871758,0.00326554,1949.6,1949.2,1.57714468]
[1688358872101,0.00326554,1949.6,1949.3,15.40643784]
[1688358872403,3.32,1949.9,1949.3,15.40643784]
[1688358872606,3.32,1949.9,1949.5,12.82345]
[1688358873354,0.00277416,1949.8,1949.5,12.82345]
[1688358874395,3.32,1949.9,1949.5,12.82345]
[1688358875503,0.00276861,1949.8,1949.5,12.82345]
[1688358876500,3.32,1949.9,1949.5,12.82345]
[1688358877195,2.55878816,1949.8,1949.5,12.82345]
[1688358877401,2.56155677,1949.8,1949.5,12.82345]
[1688358878199,2.56155677,1949.8,1949.5,14.197295]
[1688358885394,2.56155677,1949.8,1949.5,13.977295]
[1688358887356,2.56155677,1949.8,1949.5,12.60345]
[1688358893868,2.56155677,1949.8,1949.5,10.25876]
[1688358894019,2.56155677,1949.8,1949.5,12.82352]
[1688358901380,2.56155677,1949.8,1949.5,10.25876]
[1688358901744,2.56155677,1949.8,1949.5,5.12938]
[1688358902345,2.56155677,1949.8,1949.5,5.12949]
[1688358902545,2.56155677,1949.8,1949.4,10.25927]
[1688358902757,2.56155677,1949.8,1949.4,5.12963]
[1688358903270,2.56155677,1949.8,1949.4,10.25941]
[1688358905602,2.56155677,1949.8,1949.3,5.13002]
[1688358905603,2.55878816,1949.5,1949.3,5.13002]
[1688358905757,7.12978,1949.4,1948.8,2.1321]
[1688358905943,7.68891816,1949.3,1948.9,5.13094]
[1688358906271,7.68891816,1949.3,1948.8,14.22104]
[1688358906585,0.00375301,1949.2,1948.8,9.08982]
[1688358906753,2.55878816,1949.1,1948.8,14.22118]
[1688358908684,2.55878816,1949.1,1948.8,16.78686]
[1688358908891,2.55878816,1949.1,1948.8,14.22118]
[1688358914060,2.55878816,1949.1,1948.8,9.08982]
[1688358915093,2.55878816,1949.1,1948.7,5.54713201]
[1688358915094,15.38521816,1949.1,1948.7,5.54713201]
[1688358915455,12.81993816,1949.1,1948.7,10.67875201]
[1688358915655,7.68935816,1949.1,1948.7,10.67875201]
[1688358916985,7.68935816,1949.1,1948.7,13.24456201]
[1688358917172,2.55878816,1949.1,1948.7,13.24456201]
[1688358919501,2.55878816,1949.1,1948.7,10.67875201]
[1688358919502,7.68936816,1949.1,1948.7,10.67875201]
[1688358920294,7.68936816,1949.1,1948.7,13.24456201]
[1688358920504,2.55878816,1949.1,1948.7,13.24456201]
[1688358921589,7.68937816,1949.1,1948.7,13.24456201]
[1688358922409,12.82005816,1949.1,1948.6,8.87444]
[1688358922606,13.74305816,1949.1,1948.6,3.7427]
[1688358923251,10.2623,1948.9,1948.6,0.4117472]
[1688358923449,7.69017816,1948.8,1948.5,5.23194]
[1688358924651,2.55878816,1948.8,1948.5,10.36409]
[1688358925411,2.55878816,1948.8,1948.5,12.93016]
[1688358925801,2.55878816,1948.8,1948.5,13.34674322]
[1688358928539,2.55878816,1948.8,1948.5,10.78067322]
[1688358933146,2.55878816,1948.8,1948.5,7.96067322]
[1688358933449,0.03014816,1948.7,1948.5,10.68088322]
[1688358937777,7.69015816,1948.8,1948.5,10.68088322]
[1688358938152,0.03235347,1948.7,1948.5,10.68088322]
[1688358941774,0.03235347,1948.7,1948.4,7.49606834]
[1688358941775,2.55878816,1948.6,1948.4,2.1155]
[1688358941976,7.69074816,1948.6,1948.3,5.24913629]
[1688358942475,0.04125039,1948.5,1948.3,5.24913629]
[1688358943711,2.60003855,1948.5,1948.3,0.11648629]
[1688358944209,2.60003855,1948.5,1948.3,5.24906629]
[1688358945808,2.60003855,1948.5,1948.3,10.38173629]
[1688358948805,2.60003855,1948.5,1948.3,0.11648629]
[1688358949110,2.60003855,1948.5,1948.3,5.24912629]
[1688358949979,2.60003855,1948.5,1948.3,0.11648629]
[1688358950237,2.60003855,1948.5,1948.3,5.24910629]
[1688358951921,2.55878816,1948.4,1948.3,0.1]
[1688358953237,12.82360816,1948.4,1948.3,0.1]
[1688358953430,2.55878816,1948.4,1948.3,0.1]
[1688358953762,7.69119816,1948.4,1948.3,0.1]
[1688358953977,2.55878816,1948.4,1948.3,0.1]
[1688358954336,7.69119816,1948.4,1948.3,0.1]
[1688358954939,2.55878816,1948.4,1948.3,0.1]
[1688358959405,7.69119816,1948.4,1948.3,0.1]
[1688358963127,7.69119816,1948.4,1948.3,5.23267]
[1688358963128,2.55878816,1948.4,1948.3,5.23267]
[1688358963270,2.55878816,1948.4,1948.3,0.1]
[1688358968226,7.69119816,1948.4,1948.3,0.1]
[1688358968925,2.55878816,1948.4,1948.3,0.1]
[1688358969097,2.55878816,1948.4,1948.3,10.36534]
[1688358969303,2.55878816,1948.4,1948.3,12.94815629]
[1688358969505,2.55878816,1948.4,1948.3,10.38182629]
[1688358971429,0.03027798,1948.6,1948.3,12.94815629]